Department Family,Entity,Date,Expense Type,Expense Area,Supplier,Transaction Number,Amount
Food Standards Agency,Food Standards Agency,01/03/2011,Staff training: Regional and HQ Administration,Delivery,Taurus Print & Design Ltd,19332,"37,009.78"
Food Standards Agency,Food Standards Agency,01/03/2011,Staff training: Regional and HQ Administration,Delivery,Taurus Print & Design Ltd,19332,"5,373.36"
Food Standards Agency,Food Standards Agency,01/03/2011,Staff training: Regional and HQ Administration,Delivery,Taurus Print & Design Ltd,19332,"4,076.86"
Food Standards Agency,Food Standards Agency,01/03/2011,Project Programme expenditure,Delivery,C E F A S,8000775,"61,109.33"
Food Standards Agency,Food Standards Agency,01/03/2011,Project Programme expenditure,Delivery,Campden Technology Limited,20024420,"21,050.00"
Food Standards Agency,Food Standards Agency,01/03/2011,Project Programme expenditure,Delivery,Campden Technology Limited,20024420,"11,475.00"
Food Standards Agency,Food Standards Agency,01/03/2011,Project Programme expenditure,Delivery,Campden Technology Limited,20024420,"4,416.00"
Food Standards Agency,Food Standards Agency,01/03/2011,Project Programme expenditure,Delivery,City Of York Council,9100516932,"23,797.50"
Food Standards Agency,Food Standards Agency,01/03/2011,Project Programme expenditure,Delivery,City Of York Council,9100516932,"3,644.00"
Food Standards Agency,Food Standards Agency,01/03/2011,Programme Evidence & Research Expenditure,Chemical Risk Assessment Unit,Food & Environment Research Agency,F0013552,"24,300.00"
Food Standards Agency,Food Standards Agency,01/03/2011,Programme Evidence & Research Expenditure,Chemical Risk Assessment Unit,Food & Environment Research Agency,F0013552,"4,860.00"
Food Standards Agency,Food Standards Agency,01/03/2011,Programme Evidence & Research Expenditure,Chemical Risk Assessment Unit,Queens University Belfast,80001219,"59,582.45"
Food Standards Agency,Food Standards Agency,01/03/2011,Programme Evidence & Research Expenditure,Food Production Branch,Campden Bri,20024345,"21,252.00"
Food Standards Agency,Food Standards Agency,03/03/2011,Project Programme expenditure,Delivery,Animal Health,5000001939,"296,909.00"
Food Standards Agency,Food Standards Agency,03/03/2011,Project Programme expenditure,Delivery,Coi,732406,"17,662.57"
Food Standards Agency,Food Standards Agency,03/03/2011,Project Programme expenditure,Delivery,Coi,732406,"10,309.70"
Food Standards Agency,Food Standards Agency,03/03/2011,Programme Evidence & Research Expenditure,Food Production Branch,Ecole Nationale Veterinaire De Toulouse,3R37612010IHAPMS,"108,114.00"
Food Standards Agency,Food Standards Agency,03/03/2011,Programme Evidence & Research Expenditure,Food Production Branch,Ecole Nationale Veterinaire De Toulouse,3R37622010IHAPMS,"65,312.00"
Food Standards Agency,Food Standards Agency,03/03/2011,IT equipment maintenance,IT Service Delivery,Contemporary PLC.,36240,"21,560.00"
Food Standards Agency,Food Standards Agency,03/03/2011,IT equipment maintenance,IT Service Delivery,Contemporary PLC.,36240,"4,312.00"
Food Standards Agency,Food Standards Agency,04/03/2011,Programme Evidence & Research Expenditure,Official Controls & Enforcement Strategy,Coi,732636,"31,500.00"
Food Standards Agency,Food Standards Agency,04/03/2011,Programme Evidence & Research Expenditure,Contaminants Policy & Strategy Unit,Food & Environment Research Agency,F0013615,"44,000.00"
Food Standards Agency,Food Standards Agency,04/03/2011,Rent & management charges - Outside London,Security & Estates,D T Z,26490,"56,521.75"
Food Standards Agency,Food Standards Agency,04/03/2011,Service charges,Security & Estates,G4s Integrated Services (Uk) Ltd,715508,"26,138.27"
Food Standards Agency,Food Standards Agency,04/03/2011,Service charges,Security & Estates,G4s Integrated Services (Uk) Ltd,715508,"15,150.81"
Food Standards Agency,Food Standards Agency,04/03/2011,Service charges,Security & Estates,G4s Integrated Services (Uk) Ltd,715508,"2,760.55"
Food Standards Agency,Food Standards Agency,04/03/2011,Office machinery: hire,Security & Estates,G4s Integrated Services (Uk) Ltd,715508,"3,244.00"
Food Standards Agency,Food Standards Agency,04/03/2011,Security,Security & Estates,G4s Integrated Services (Uk) Ltd,715508,"17,623.33"
Food Standards Agency,Food Standards Agency,07/03/2011,Project Programme expenditure,Delivery,C E F A S,8000847,"61,109.33"
Food Standards Agency,Food Standards Agency,07/03/2011,Programme Evidence & Research Expenditure,Chemical Risk Assessment Unit,Food & Environment Research Agency,F0013590,"55,308.00"
Food Standards Agency,Food Standards Agency,07/03/2011,Programme Evidence & Research Expenditure,Chemical Risk Assessment Unit,Food & Environment Research Agency,F0013590,"11,061.60"
Food Standards Agency,Food Standards Agency,07/03/2011,Project Programme expenditure,Contaminants Policy & Strategy Unit,Veterinary Laboratories Agency,4000001622,"74,956.58"
Food Standards Agency,Food Standards Agency,07/03/2011,Programme Evidence & Research Expenditure,Nutrition Research & Expert Advice,IFR Enterprises Ltd,INV0002431,"34,970.00"
Food Standards Agency,Food Standards Agency,07/03/2011,Programme Evidence & Research Expenditure,Nutrition Research & Expert Advice,University Of Sheffield,1800051554,"77,064.00"
Food Standards Agency,Food Standards Agency,08/03/2011,Travel UK ,Chief Executive & Private Office,Capita Business Travel Ltd,L1244078,150.85
Food Standards Agency,Food Standards Agency,08/03/2011,Travel UK ,Chief Executive & Private Office,Capita Business Travel Ltd,L1244078,150.35
Food Standards Agency,Food Standards Agency,08/03/2011,Travel UK ,Chief Executive & Private Office,Capita Business Travel Ltd,L1244078,138.9
Food Standards Agency,Food Standards Agency,08/03/2011,Travel UK ,Chief Executive & Private Office,Capita Business Travel Ltd,L1244078,78.8
Food Standards Agency,Food Standards Agency,08/03/2011,Subsistence UK,Chief Executive & Private Office,Capita Business Travel Ltd,L1244078,155.5
Food Standards Agency,Food Standards Agency,08/03/2011,Subsistence UK,Chief Executive & Private Office,Capita Business Travel Ltd,L1244078,82.33
Food Standards Agency,Food Standards Agency,08/03/2011,Subsistence UK,Chief Executive & Private Office,Capita Business Travel Ltd,L1244078,31.1
Food Standards Agency,Food Standards Agency,08/03/2011,Subsistence UK,Chief Executive & Private Office,Capita Business Travel Ltd,L1244078,16.47
Food Standards Agency,Food Standards Agency,08/03/2011,Travel UK ,Chair & Deputy Chair,Capita Business Travel Ltd,L1244078,133
Food Standards Agency,Food Standards Agency,08/03/2011,Travel UK ,FSA Board,Capita Business Travel Ltd,L1244078,25.9
Food Standards Agency,Food Standards Agency,08/03/2011,International Travel,FSA Board,Capita Business Travel Ltd,L1244078,164.49
Food Standards Agency,Food Standards Agency,08/03/2011,Subsistence UK,FSA Board,Capita Business Travel Ltd,L1244078,686
Food Standards Agency,Food Standards Agency,08/03/2011,Subsistence UK,FSA Board,Capita Business Travel Ltd,L1244078,137.2
Food Standards Agency,Food Standards Agency,08/03/2011,Subsistence UK,FSA Board,Capita Business Travel Ltd,L1244078,-16
Food Standards Agency,Food Standards Agency,08/03/2011,Travel UK ,Legal  Branch A,Capita Business Travel Ltd,L1244078,92.5
Food Standards Agency,Food Standards Agency,08/03/2011,Subsistence UK,Legal  Branch A,Capita Business Travel Ltd,L1244078,77.75
Food Standards Agency,Food Standards Agency,08/03/2011,Subsistence UK,Legal  Branch A,Capita Business Travel Ltd,L1244078,15.55
Food Standards Agency,Food Standards Agency,08/03/2011,Travel UK ,Investigations,Capita Business Travel Ltd,L1244078,159.6
Food Standards Agency,Food Standards Agency,08/03/2011,Subsistence UK,Investigations,Capita Business Travel Ltd,L1244078,178.9
Food Standards Agency,Food Standards Agency,08/03/2011,Subsistence UK,Investigations,Capita Business Travel Ltd,L1244078,35.78
Food Standards Agency,Food Standards Agency,08/03/2011,Subsistence UK,Investigations,Capita Business Travel Ltd,L1244078,-8
Food Standards Agency,Food Standards Agency,08/03/2011,Travel UK ,Chief Scientist,Capita Business Travel Ltd,L1244078,80.45
Food Standards Agency,Food Standards Agency,08/03/2011,International Travel,Chief Scientist,Capita Business Travel Ltd,L1244078,304.75
Food Standards Agency,Food Standards Agency,08/03/2011,Travel UK ,Analysis & Research Branch,Capita Business Travel Ltd,L1244078,233.8
Food Standards Agency,Food Standards Agency,08/03/2011,International Travel,Analysis & Research Branch,Capita Business Travel Ltd,L1244078,125.9
Food Standards Agency,Food Standards Agency,08/03/2011,Subsistence UK,Analysis & Research Branch,Capita Business Travel Ltd,L1244078,77.33
Food Standards Agency,Food Standards Agency,08/03/2011,Subsistence UK,Analysis & Research Branch,Capita Business Travel Ltd,L1244078,15.47
Food Standards Agency,Food Standards Agency,08/03/2011,Travel UK ,Comms Directors Office,Capita Business Travel Ltd,L1244078,562.9
Food Standards Agency,Food Standards Agency,08/03/2011,Travel UK ,Comms Directors Office,Capita Business Travel Ltd,L1244078,109.25
Food Standards Agency,Food Standards Agency,08/03/2011,Subsistence UK,Comms Directors Office,Capita Business Travel Ltd,L1244078,233
Food Standards Agency,Food Standards Agency,08/03/2011,Subsistence UK,Comms Directors Office,Capita Business Travel Ltd,L1244078,46.6
Food Standards Agency,Food Standards Agency,08/03/2011,Car hire expenses (short term),Comms Directors Office,Capita Business Travel Ltd,L1244078,175.75
Food Standards Agency,Food Standards Agency,08/03/2011,Car hire expenses (short term),Comms Directors Office,Capita Business Travel Ltd,L1244078,35.15
Food Standards Agency,Food Standards Agency,08/03/2011,Car hire expenses (short term),Comms Directors Office,Capita Business Travel Ltd,L1244078,-3.79
Food Standards Agency,Food Standards Agency,08/03/2011,Travel UK ,FSA Operations Director & Support,Capita Business Travel Ltd,L1244078,94.8
Food Standards Agency,Food Standards Agency,08/03/2011,International Travel,FSA Operations Director & Support,Capita Business Travel Ltd,L1244078,244.04
Food Standards Agency,Food Standards Agency,08/03/2011,Travel UK ,FSA Operations Vet Tec,Capita Business Travel Ltd,L1244078,"1,898.15"
Food Standards Agency,Food Standards Agency,08/03/2011,Subsistence UK,FSA Operations Vet Tec,Capita Business Travel Ltd,L1244078,"1,347.33"
Food Standards Agency,Food Standards Agency,08/03/2011,Subsistence UK,FSA Operations Vet Tec,Capita Business Travel Ltd,L1244078,269.47
Food Standards Agency,Food Standards Agency,08/03/2011,Subsistence UK,FSA Operations Vet Tec,Capita Business Travel Ltd,L1244078,14.79
Food Standards Agency,Food Standards Agency,08/03/2011,Subsistence UK,FSA Operations Vet Tec,Capita Business Travel Ltd,L1244078,2.96
Food Standards Agency,Food Standards Agency,08/03/2011,Car hire expenses (short term),FSA Operations Vet Tec,Capita Business Travel Ltd,L1244078,629.05
Food Standards Agency,Food Standards Agency,08/03/2011,Car hire expenses (short term),FSA Operations Vet Tec,Capita Business Travel Ltd,L1244078,125.81
Food Standards Agency,Food Standards Agency,08/03/2011,Car hire expenses (short term),FSA Operations Vet Tec,Capita Business Travel Ltd,L1244078,-15.12
Food Standards Agency,Food Standards Agency,08/03/2011,Travel UK ,LAALD HoD & Support,Capita Business Travel Ltd,L1244078,"1,916.95"
Food Standards Agency,Food Standards Agency,08/03/2011,Subsistence UK,LAALD HoD & Support,Capita Business Travel Ltd,L1244078,"1,240.34"
Food Standards Agency,Food Standards Agency,08/03/2011,Subsistence UK,LAALD HoD & Support,Capita Business Travel Ltd,L1244078,248.07
Food Standards Agency,Food Standards Agency,08/03/2011,Subsistence UK,LAALD HoD & Support,Capita Business Travel Ltd,L1244078,19.16
Food Standards Agency,Food Standards Agency,08/03/2011,Subsistence UK,LAALD HoD & Support,Capita Business Travel Ltd,L1244078,3.83
Food Standards Agency,Food Standards Agency,08/03/2011,Subsistence UK,LAALD HoD & Support,Capita Business Travel Ltd,L1244078,-0.01
Food Standards Agency,Food Standards Agency,08/03/2011,Conference and meeting facilities including accommodation,LAALD HoD & Support,Capita Business Travel Ltd,L1244078,259.25
Food Standards Agency,Food Standards Agency,08/03/2011,Conference and meeting facilities including accommodation,LAALD HoD & Support,Capita Business Travel Ltd,L1244078,51.85
Food Standards Agency,Food Standards Agency,08/03/2011,Car hire expenses (short term),LAALD HoD & Support,Capita Business Travel Ltd,L1244078,106.55
Food Standards Agency,Food Standards Agency,08/03/2011,Car hire expenses (short term),LAALD HoD & Support,Capita Business Travel Ltd,L1244078,21.31
Food Standards Agency,Food Standards Agency,08/03/2011,Car hire expenses (short term),LAALD HoD & Support,Capita Business Travel Ltd,L1244078,-2.36
Food Standards Agency,Food Standards Agency,08/03/2011,Travel UK ,Incidents & Food Fraud,Capita Business Travel Ltd,L1244078,49.7
Food Standards Agency,Food Standards Agency,08/03/2011,Travel UK ,Delivery,Capita Business Travel Ltd,L1244078,"1,340.15"
Food Standards Agency,Food Standards Agency,08/03/2011,Travel UK ,Delivery,Capita Business Travel Ltd,L1244078,743.7
Food Standards Agency,Food Standards Agency,08/03/2011,Travel UK ,Delivery,Capita Business Travel Ltd,L1244078,68.09
Food Standards Agency,Food Standards Agency,08/03/2011,Project Programme expenditure,Delivery,Capita Business Travel Ltd,L1244078,"3,425.08"
Food Standards Agency,Food Standards Agency,08/03/2011,Project Programme expenditure,Delivery,Capita Business Travel Ltd,L1244078,921.49
Food Standards Agency,Food Standards Agency,08/03/2011,Project Programme expenditure,Delivery,Capita Business Travel Ltd,L1244078,685.02
Food Standards Agency,Food Standards Agency,08/03/2011,Project Programme expenditure,Delivery,Capita Business Travel Ltd,L1244078,323.62
Food Standards Agency,Food Standards Agency,08/03/2011,Project Programme expenditure,Delivery,Capita Business Travel Ltd,L1244078,184.3
Food Standards Agency,Food Standards Agency,08/03/2011,Project Programme expenditure,Delivery,Capita Business Travel Ltd,L1244078,64.72
Food Standards Agency,Food Standards Agency,08/03/2011,Project Programme expenditure,Delivery,Capita Business Travel Ltd,L1244078,-7.2
Food Standards Agency,Food Standards Agency,08/03/2011,Project Programme expenditure,Delivery,Capita Business Travel Ltd,L1244078,-25.3
Food Standards Agency,Food Standards Agency,08/03/2011,Project Programme expenditure,Delivery,Capita Business Travel Ltd,L1244078,-33.01
Food Standards Agency,Food Standards Agency,08/03/2011,Travel UK ,Enforcement Policy,Capita Business Travel Ltd,L1244078,266.7
Food Standards Agency,Food Standards Agency,08/03/2011,Project Programme expenditure,Enforcement Policy,Capita Business Travel Ltd,L1244078,"1,431.00"
Food Standards Agency,Food Standards Agency,08/03/2011,Project Programme expenditure,Enforcement Policy,Capita Business Travel Ltd,L1244078,286.2
Food Standards Agency,Food Standards Agency,08/03/2011,Project Programme expenditure,Enforcement Policy,Capita Business Travel Ltd,L1244078,69
Food Standards Agency,Food Standards Agency,08/03/2011,Project Programme expenditure,Enforcement Policy,Capita Business Travel Ltd,L1244078,13.8
Food Standards Agency,Food Standards Agency,08/03/2011,Travel UK ,Official Controls & Enforcement Strategy,Capita Business Travel Ltd,L1244078,126.5
Food Standards Agency,Food Standards Agency,08/03/2011,Travel UK ,FSA Ops Delivery Planning Unit,Capita Business Travel Ltd,L1244078,"2,370.80"
Food Standards Agency,Food Standards Agency,08/03/2011,Travel UK ,FSA Ops Delivery Planning Unit,Capita Business Travel Ltd,L1244078,558.38
Food Standards Agency,Food Standards Agency,08/03/2011,Subsistence UK,FSA Ops Delivery Planning Unit,Capita Business Travel Ltd,L1244078,"4,533.72"
Food Standards Agency,Food Standards Agency,08/03/2011,Subsistence UK,FSA Ops Delivery Planning Unit,Capita Business Travel Ltd,L1244078,906.74
Food Standards Agency,Food Standards Agency,08/03/2011,Subsistence UK,FSA Ops Delivery Planning Unit,Capita Business Travel Ltd,L1244078,-7.56
Food Standards Agency,Food Standards Agency,08/03/2011,Laundry,FSA Ops Delivery Planning Unit,Apparelmaster UK Ltd,37429,"27,793.43"
Food Standards Agency,Food Standards Agency,08/03/2011,Laundry,FSA Ops Delivery Planning Unit,Apparelmaster UK Ltd,37429,"5,558.69"
Food Standards Agency,Food Standards Agency,08/03/2011,Conference and meeting facilities including accommodation,FSA Ops Delivery Planning Unit,Capita Business Travel Ltd,L1244078,240.9
Food Standards Agency,Food Standards Agency,08/03/2011,Conference and meeting facilities including accommodation,FSA Ops Delivery Planning Unit,Capita Business Travel Ltd,L1244078,48.18
Food Standards Agency,Food Standards Agency,08/03/2011,Conference and meeting facilities including accommodation,FSA Ops Delivery Planning Unit,Capita Business Travel Ltd,L1244078,-1.21
Food Standards Agency,Food Standards Agency,08/03/2011,Car hire expenses (short term),FSA Ops Delivery Planning Unit,Capita Business Travel Ltd,L1244078,743.71
Food Standards Agency,Food Standards Agency,08/03/2011,Car hire expenses (short term),FSA Ops Delivery Planning Unit,Capita Business Travel Ltd,L1244078,148.74
Food Standards Agency,Food Standards Agency,08/03/2011,Car hire expenses (short term),FSA Ops Delivery Planning Unit,Capita Business Travel Ltd,L1244078,-17.99
Food Standards Agency,Food Standards Agency,08/03/2011,Travel UK ,Chemical Risk Assessment Unit,Capita Business Travel Ltd,L1244078,61.4
Food Standards Agency,Food Standards Agency,08/03/2011,Subsistence UK,Chemical Risk Assessment Unit,Capita Business Travel Ltd,L1244078,71.08
Food Standards Agency,Food Standards Agency,08/03/2011,Subsistence UK,Chemical Risk Assessment Unit,Capita Business Travel Ltd,L1244078,14.22
Food Standards Agency,Food Standards Agency,08/03/2011,Subsistence UK,Chemical Risk Assessment Unit,Capita Business Travel Ltd,L1244078,-0.01
Food Standards Agency,Food Standards Agency,08/03/2011,Programme Evidence & Research Expenditure,Chemical Risk Assessment Unit,Food & Environment Research Agency,C0004993,"-11,061.60"
Food Standards Agency,Food Standards Agency,08/03/2011,Programme Evidence & Research Expenditure,Chemical Risk Assessment Unit,Food & Environment Research Agency,C0004993,"-55,308.00"
Food Standards Agency,Food Standards Agency,08/03/2011,Programme Evidence & Research Expenditure,Chemical Risk Assessment Unit,University Of Hull,SOIN40381,"27,626.00"
Food Standards Agency,Food Standards Agency,08/03/2011,Travel UK ,Contaminants Policy & Strategy Unit,Capita Business Travel Ltd,L1244078,152.85
Food Standards Agency,Food Standards Agency,08/03/2011,Car hire expenses (short term),Contaminants Policy & Strategy Unit,Capita Business Travel Ltd,L1244078,69.35
Food Standards Agency,Food Standards Agency,08/03/2011,Car hire expenses (short term),Contaminants Policy & Strategy Unit,Capita Business Travel Ltd,L1244078,13.87
Food Standards Agency,Food Standards Agency,08/03/2011,Car hire expenses (short term),Contaminants Policy & Strategy Unit,Capita Business Travel Ltd,L1244078,-1.43
Food Standards Agency,Food Standards Agency,08/03/2011,Project Programme expenditure,Contaminants Policy & Strategy Unit,C E F A S,8000841,"38,636.00"
Food Standards Agency,Food Standards Agency,08/03/2011,International Travel,Novel Food Unit,Capita Business Travel Ltd,L1244078,342.5
Food Standards Agency,Food Standards Agency,08/03/2011,Subsistence UK,Novel Food Unit,Capita Business Travel Ltd,L1244078,63.41
Food Standards Agency,Food Standards Agency,08/03/2011,Subsistence UK,Novel Food Unit,Capita Business Travel Ltd,L1244078,12.68
Food Standards Agency,Food Standards Agency,08/03/2011,Subsistence UK,Novel Food Unit,Capita Business Travel Ltd,L1244078,-1.29
Food Standards Agency,Food Standards Agency,08/03/2011,Travel UK ,Hygiene & Microbiology Division HoD,Capita Business Travel Ltd,L1244078,120.4
Food Standards Agency,Food Standards Agency,08/03/2011,International Travel,Food Production Branch,Capita Business Travel Ltd,L1244078,323.75
Food Standards Agency,Food Standards Agency,08/03/2011,International Travel,Animal Feed Branch,Capita Business Travel Ltd,L1244078,138.75
Food Standards Agency,Food Standards Agency,08/03/2011,Programme Evidence & Research Expenditure,Allergens,University Of Cambridge,EW9032008,"56,975.00"
Food Standards Agency,Food Standards Agency,08/03/2011,International Travel,Additives,Capita Business Travel Ltd,L1244078,352.25
Food Standards Agency,Food Standards Agency,08/03/2011,Travel UK ,Food Policy Strategy Hod,Capita Business Travel Ltd,L1244078,"1,646.62"
Food Standards Agency,Food Standards Agency,08/03/2011,Travel UK ,Food Policy Strategy Hod,Capita Business Travel Ltd,L1244078,"1,618.40"
Food Standards Agency,Food Standards Agency,08/03/2011,Subsistence UK,Food Policy Strategy Hod,Capita Business Travel Ltd,L1244078,"2,986.04"
Food Standards Agency,Food Standards Agency,08/03/2011,Subsistence UK,Food Policy Strategy Hod,Capita Business Travel Ltd,L1244078,597.21
Food Standards Agency,Food Standards Agency,08/03/2011,Subsistence UK,Food Policy Strategy Hod,Capita Business Travel Ltd,L1244078,279
Food Standards Agency,Food Standards Agency,08/03/2011,Subsistence UK,Food Policy Strategy Hod,Capita Business Travel Ltd,L1244078,55.8
Food Standards Agency,Food Standards Agency,08/03/2011,Subsistence UK,Food Policy Strategy Hod,Capita Business Travel Ltd,L1244078,14.68
Food Standards Agency,Food Standards Agency,08/03/2011,Subsistence UK,Food Policy Strategy Hod,Capita Business Travel Ltd,L1244078,2.94
Food Standards Agency,Food Standards Agency,08/03/2011,Subsistence UK,Food Policy Strategy Hod,Capita Business Travel Ltd,L1244078,-4.65
Food Standards Agency,Food Standards Agency,08/03/2011,Travel UK ,Planning & Performance,Capita Business Travel Ltd,L1244078,505.9
Food Standards Agency,Food Standards Agency,08/03/2011,Subsistence UK,Planning & Performance,Capita Business Travel Ltd,L1244078,139.5
Food Standards Agency,Food Standards Agency,08/03/2011,Subsistence UK,Planning & Performance,Capita Business Travel Ltd,L1244078,27.9
Food Standards Agency,Food Standards Agency,08/03/2011,Travel UK ,Food Policy Private Office,Capita Business Travel Ltd,L1244078,116.85
Food Standards Agency,Food Standards Agency,08/03/2011,Travel UK ,Finance Director & Branch,Capita Business Travel Ltd,L1244078,"1,395.50"
Food Standards Agency,Food Standards Agency,08/03/2011,Subsistence UK,Finance Director & Branch,Capita Business Travel Ltd,L1244078,534.5
Food Standards Agency,Food Standards Agency,08/03/2011,Subsistence UK,Finance Director & Branch,Capita Business Travel Ltd,L1244078,106.9
Food Standards Agency,Food Standards Agency,08/03/2011,Subsistence UK,Finance Director & Branch,Capita Business Travel Ltd,L1244078,86.5
Food Standards Agency,Food Standards Agency,08/03/2011,Subsistence UK,Finance Director & Branch,Capita Business Travel Ltd,L1244078,17.3
Food Standards Agency,Food Standards Agency,08/03/2011,Committee fees,Finance Director & Branch,Capita Business Travel Ltd,L1244078,865
Food Standards Agency,Food Standards Agency,08/03/2011,Committee fees,Finance Director & Branch,Capita Business Travel Ltd,L1244078,620.27
Food Standards Agency,Food Standards Agency,08/03/2011,Committee fees,Finance Director & Branch,Capita Business Travel Ltd,L1244078,173
Food Standards Agency,Food Standards Agency,08/03/2011,Committee fees,Finance Director & Branch,Capita Business Travel Ltd,L1244078,124.05
Food Standards Agency,Food Standards Agency,08/03/2011,Committee fees,Finance Director & Branch,Capita Business Travel Ltd,L1244078,0.01
Food Standards Agency,Food Standards Agency,08/03/2011,Travel UK ,HR,Capita Business Travel Ltd,L1244078,"5,191.40"
Food Standards Agency,Food Standards Agency,08/03/2011,Subsistence UK,HR,Capita Business Travel Ltd,L1244078,"1,549.45"
Food Standards Agency,Food Standards Agency,08/03/2011,Subsistence UK,HR,Capita Business Travel Ltd,L1244078,309.89
Food Standards Agency,Food Standards Agency,08/03/2011,Subsistence UK,HR,Capita Business Travel Ltd,L1244078,-2.24
Food Standards Agency,Food Standards Agency,08/03/2011,Car hire expenses (short term),HR,Capita Business Travel Ltd,L1244078,102.41
Food Standards Agency,Food Standards Agency,08/03/2011,Car hire expenses (short term),HR,Capita Business Travel Ltd,L1244078,20.48
Food Standards Agency,Food Standards Agency,08/03/2011,Car hire expenses (short term),HR,Capita Business Travel Ltd,L1244078,-2.26
Food Standards Agency,Food Standards Agency,08/03/2011,Travel UK ,Procurement,Capita Business Travel Ltd,L1244078,"1,293.30"
Food Standards Agency,Food Standards Agency,08/03/2011,Travel UK ,Procurement,Capita Business Travel Ltd,L1244078,618.3
Food Standards Agency,Food Standards Agency,08/03/2011,Subsistence UK,Procurement,Capita Business Travel Ltd,L1244078,614.33
Food Standards Agency,Food Standards Agency,08/03/2011,Subsistence UK,Procurement,Capita Business Travel Ltd,L1244078,239.91
Food Standards Agency,Food Standards Agency,08/03/2011,Subsistence UK,Procurement,Capita Business Travel Ltd,L1244078,122.87
Food Standards Agency,Food Standards Agency,08/03/2011,Subsistence UK,Procurement,Capita Business Travel Ltd,L1244078,47.98
Food Standards Agency,Food Standards Agency,08/03/2011,Subsistence UK,Procurement,Capita Business Travel Ltd,L1244078,-6
Food Standards Agency,Food Standards Agency,08/03/2011,Travel UK ,IT HoD Portfolio Management,Capita Business Travel Ltd,L1244078,"3,249.85"
Food Standards Agency,Food Standards Agency,08/03/2011,Subsistence UK,IT HoD Portfolio Management,Capita Business Travel Ltd,L1244078,"1,144.60"
Food Standards Agency,Food Standards Agency,08/03/2011,Subsistence UK,IT HoD Portfolio Management,Capita Business Travel Ltd,L1244078,228.92
Food Standards Agency,Food Standards Agency,08/03/2011,Subsistence UK,IT HoD Portfolio Management,Capita Business Travel Ltd,L1244078,-6.52
Food Standards Agency,Food Standards Agency,08/03/2011,Travel UK ,IT Strategy & Development,Capita Business Travel Ltd,L1244078,691.9
Food Standards Agency,Food Standards Agency,08/03/2011,Subsistence UK,IT Strategy & Development,Capita Business Travel Ltd,L1244078,745.9
Food Standards Agency,Food Standards Agency,08/03/2011,Subsistence UK,IT Strategy & Development,Capita Business Travel Ltd,L1244078,149.18
Food Standards Agency,Food Standards Agency,08/03/2011,Subsistence UK,IT Strategy & Development,Capita Business Travel Ltd,L1244078,-33.28
Food Standards Agency,Food Standards Agency,08/03/2011,Utilities,Security & Estates,E D F Energy,129,"21,378.28"
Food Standards Agency,Food Standards Agency,08/03/2011,Utilities,Security & Estates,E D F Energy,129,"4,275.66"
Food Standards Agency,Food Standards Agency,08/03/2011,Travel UK ,Internal Audit,Capita Business Travel Ltd,L1244078,494.5
Food Standards Agency,Food Standards Agency,08/03/2011,Travel UK ,Internal Audit,Capita Business Travel Ltd,L1244078,312.75
Food Standards Agency,Food Standards Agency,08/03/2011,Travel UK ,Internal Audit,Capita Business Travel Ltd,L1244078,245.69
Food Standards Agency,Food Standards Agency,08/03/2011,Subsistence UK,Internal Audit,Capita Business Travel Ltd,L1244078,700.34
Food Standards Agency,Food Standards Agency,08/03/2011,Subsistence UK,Internal Audit,Capita Business Travel Ltd,L1244078,140.07
Food Standards Agency,Food Standards Agency,08/03/2011,Subsistence UK,Internal Audit,Capita Business Travel Ltd,L1244078,13.34
Food Standards Agency,Food Standards Agency,08/03/2011,Subsistence UK,Internal Audit,Capita Business Travel Ltd,L1244078,2.67
Food Standards Agency,Food Standards Agency,08/03/2011,Subsistence UK,Internal Audit,Capita Business Travel Ltd,L1244078,-0.01
Food Standards Agency,Food Standards Agency,08/03/2011,Subsistence UK,Internal Audit,Capita Business Travel Ltd,L1244078,-0.01
Food Standards Agency,Food Standards Agency,08/03/2011,Laundry,Internal Audit,Apparelmaster UK Ltd,37429,153.78
Food Standards Agency,Food Standards Agency,08/03/2011,Laundry,Internal Audit,Apparelmaster UK Ltd,37429,30.76
Food Standards Agency,Food Standards Agency,08/03/2011,Laundry,Internal Audit,Apparelmaster UK Ltd,37429,0.11
Food Standards Agency,Food Standards Agency,09/03/2011,Travel UK ,Chief Executive & Private Office,Capita Business Travel Ltd,LI249667,520.69
Food Standards Agency,Food Standards Agency,09/03/2011,Travel UK ,Chief Executive & Private Office,Capita Business Travel Ltd,LI249667,103.1
Food Standards Agency,Food Standards Agency,09/03/2011,Travel UK ,Chief Executive & Private Office,Capita Business Travel Ltd,LI249667,55.1
Food Standards Agency,Food Standards Agency,09/03/2011,Conference and meeting facilities including accommodation,Chief Executive & Private Office,Capita Business Travel Ltd,LI249667,702.78
Food Standards Agency,Food Standards Agency,09/03/2011,Conference and meeting facilities including accommodation,Chief Executive & Private Office,Capita Business Travel Ltd,LI249667,140.56
Food Standards Agency,Food Standards Agency,09/03/2011,Travel UK ,Chair & Deputy Chair,Capita Business Travel Ltd,LI249667,178.72
Food Standards Agency,Food Standards Agency,09/03/2011,Travel UK ,Chair & Deputy Chair,Capita Business Travel Ltd,LI249667,133.05
Food Standards Agency,Food Standards Agency,09/03/2011,Travel UK ,FSA Board,Capita Business Travel Ltd,LI249667,100.5
Food Standards Agency,Food Standards Agency,09/03/2011,Travel UK ,FSA Board,Capita Business Travel Ltd,LI249667,65.3
Food Standards Agency,Food Standards Agency,09/03/2011,Travel UK ,Legal  Branch A,Capita Business Travel Ltd,LI249667,203.09
Food Standards Agency,Food Standards Agency,09/03/2011,Travel UK ,Legal  Branch A,Capita Business Travel Ltd,LI249667,39.45
Food Standards Agency,Food Standards Agency,09/03/2011,International Travel,Legal  Branch A,Capita Business Travel Ltd,LI249667,173.75
Food Standards Agency,Food Standards Agency,09/03/2011,Subsistence UK,Legal  Branch A,Capita Business Travel Ltd,LI249667,74
Food Standards Agency,Food Standards Agency,09/03/2011,Subsistence UK,Legal  Branch A,Capita Business Travel Ltd,LI249667,14.8
Food Standards Agency,Food Standards Agency,09/03/2011,Travel UK ,Investigations,Capita Business Travel Ltd,LI249667,210.71
Food Standards Agency,Food Standards Agency,09/03/2011,Travel UK ,Investigations,Capita Business Travel Ltd,LI249667,75.2
Food Standards Agency,Food Standards Agency,09/03/2011,Subsistence UK,Investigations,Capita Business Travel Ltd,LI249667,575.33
Food Standards Agency,Food Standards Agency,09/03/2011,Subsistence UK,Investigations,Capita Business Travel Ltd,LI249667,115.07
Food Standards Agency,Food Standards Agency,09/03/2011,Car hire expenses (short term),Investigations,Capita Business Travel Ltd,LI249667,480.55
Food Standards Agency,Food Standards Agency,09/03/2011,Car hire expenses (short term),Investigations,Capita Business Travel Ltd,LI249667,96.11
Food Standards Agency,Food Standards Agency,09/03/2011,International Travel,Chief Scientist,Capita Business Travel Ltd,LI249667,332.4
Food Standards Agency,Food Standards Agency,09/03/2011,Travel UK ,Analysis & Research Branch,Capita Business Travel Ltd,LI249667,25.4
Food Standards Agency,Food Standards Agency,09/03/2011,Travel UK ,Comms Directors Office,Capita Business Travel Ltd,LI249667,"1,096.20"
Food Standards Agency,Food Standards Agency,09/03/2011,Travel UK ,Comms Directors Office,Capita Business Travel Ltd,LI249667,573.64
Food Standards Agency,Food Standards Agency,09/03/2011,Subsistence UK,Comms Directors Office,Capita Business Travel Ltd,LI249667,336.16
Food Standards Agency,Food Standards Agency,09/03/2011,Subsistence UK,Comms Directors Office,Capita Business Travel Ltd,LI249667,67.23
Food Standards Agency,Food Standards Agency,09/03/2011,Subsistence UK,Comms Directors Office,Capita Business Travel Ltd,LI249667,0.01
Food Standards Agency,Food Standards Agency,09/03/2011,Car hire expenses (short term),Comms Directors Office,Capita Business Travel Ltd,LI249667,128.33
Food Standards Agency,Food Standards Agency,09/03/2011,Car hire expenses (short term),Comms Directors Office,Capita Business Travel Ltd,LI249667,25.67
Food Standards Agency,Food Standards Agency,09/03/2011,Car hire expenses (short term),Comms Directors Office,Capita Business Travel Ltd,LI249667,-1.2
Food Standards Agency,Food Standards Agency,09/03/2011,Travel UK ,FSA Operations Director & Support,Capita Business Travel Ltd,LI249667,130.85
Food Standards Agency,Food Standards Agency,09/03/2011,Travel UK ,FSA Operations Director & Support,Capita Business Travel Ltd,LI249667,-67
Food Standards Agency,Food Standards Agency,09/03/2011,Travel UK ,FSA Operations Vet Tec,Capita Business Travel Ltd,LI249667,"1,122.60"
Food Standards Agency,Food Standards Agency,09/03/2011,Travel UK ,FSA Operations Vet Tec,Capita Business Travel Ltd,LI249667,310.93
Food Standards Agency,Food Standards Agency,09/03/2011,Subsistence UK,FSA Operations Vet Tec,Capita Business Travel Ltd,LI249667,933.08
Food Standards Agency,Food Standards Agency,09/03/2011,Subsistence UK,FSA Operations Vet Tec,Capita Business Travel Ltd,LI249667,186.62
Food Standards Agency,Food Standards Agency,09/03/2011,Subsistence UK,FSA Operations Vet Tec,Capita Business Travel Ltd,LI249667,-0.01
Food Standards Agency,Food Standards Agency,09/03/2011,Car hire expenses (short term),FSA Operations Vet Tec,Capita Business Travel Ltd,LI249667,463.27
Food Standards Agency,Food Standards Agency,09/03/2011,Car hire expenses (short term),FSA Operations Vet Tec,Capita Business Travel Ltd,LI249667,92.65
Food Standards Agency,Food Standards Agency,09/03/2011,Car hire expenses (short term),FSA Operations Vet Tec,Capita Business Travel Ltd,LI249667,0.01
Food Standards Agency,Food Standards Agency,09/03/2011,Travel UK ,LAALD HoD & Support,Capita Business Travel Ltd,LI249667,"2,110.10"
Food Standards Agency,Food Standards Agency,09/03/2011,Travel UK ,LAALD HoD & Support,Capita Business Travel Ltd,LI249667,257.34
Food Standards Agency,Food Standards Agency,09/03/2011,Subsistence UK,LAALD HoD & Support,Capita Business Travel Ltd,LI249667,421
Food Standards Agency,Food Standards Agency,09/03/2011,Subsistence UK,LAALD HoD & Support,Capita Business Travel Ltd,LI249667,84.2
Food Standards Agency,Food Standards Agency,09/03/2011,Rent & management charges - Outside London,LAALD HoD & Support,Dept For Communities & Local Gov,1800006737,"71,014.00"
Food Standards Agency,Food Standards Agency,09/03/2011,Car hire expenses (short term),LAALD HoD & Support,Capita Business Travel Ltd,LI249667,145.43
Food Standards Agency,Food Standards Agency,09/03/2011,Car hire expenses (short term),LAALD HoD & Support,Capita Business Travel Ltd,LI249667,29.09
Food Standards Agency,Food Standards Agency,09/03/2011,Project Programme expenditure,Incidents & Food Fraud,Capita Business Travel Ltd,LI249667,94.5
Food Standards Agency,Food Standards Agency,09/03/2011,Travel UK ,Delivery,Capita Business Travel Ltd,LI249667,"1,263.50"
Food Standards Agency,Food Standards Agency,09/03/2011,Subsistence UK,Delivery,Capita Business Travel Ltd,LI249667,440.04
Food Standards Agency,Food Standards Agency,09/03/2011,Subsistence UK,Delivery,Capita Business Travel Ltd,LI249667,88.01
Food Standards Agency,Food Standards Agency,09/03/2011,Project Programme expenditure,Delivery,Capita Business Travel Ltd,LI249667,"1,519.60"
Food Standards Agency,Food Standards Agency,09/03/2011,Project Programme expenditure,Delivery,Capita Business Travel Ltd,LI249667,303.92
Food Standards Agency,Food Standards Agency,09/03/2011,Project Programme expenditure,Delivery,Capita Business Travel Ltd,LI249667,-14.52
Food Standards Agency,Food Standards Agency,09/03/2011,Travel UK ,Enforcement Policy,Capita Business Travel Ltd,LI249667,131.5
Food Standards Agency,Food Standards Agency,09/03/2011,Project Programme expenditure,Enforcement Policy,Capita Business Travel Ltd,LI249667,133.93
Food Standards Agency,Food Standards Agency,09/03/2011,Travel UK ,Official Controls & Enforcement Strategy,Capita Business Travel Ltd,LI249667,290.75
Food Standards Agency,Food Standards Agency,09/03/2011,Travel UK ,FSA Ops Delivery Planning Unit,Capita Business Travel Ltd,LI249667,"2,523.05"
Food Standards Agency,Food Standards Agency,09/03/2011,Travel UK ,FSA Ops Delivery Planning Unit,Capita Business Travel Ltd,LI249667,48.75
Food Standards Agency,Food Standards Agency,09/03/2011,Subsistence UK,FSA Ops Delivery Planning Unit,Capita Business Travel Ltd,LI249667,"2,494.36"
Food Standards Agency,Food Standards Agency,09/03/2011,Subsistence UK,FSA Ops Delivery Planning Unit,Capita Business Travel Ltd,LI249667,498.87
Food Standards Agency,Food Standards Agency,09/03/2011,Subsistence UK,FSA Ops Delivery Planning Unit,Capita Business Travel Ltd,LI249667,-23.53
Food Standards Agency,Food Standards Agency,09/03/2011,Conference and meeting facilities including accommodation,FSA Ops Delivery Planning Unit,Capita Business Travel Ltd,LI249667,281.71
Food Standards Agency,Food Standards Agency,09/03/2011,Conference and meeting facilities including accommodation,FSA Ops Delivery Planning Unit,Capita Business Travel Ltd,LI249667,56.34
Food Standards Agency,Food Standards Agency,09/03/2011,Conference and meeting facilities including accommodation,FSA Ops Delivery Planning Unit,Capita Business Travel Ltd,LI249667,-3.68
Food Standards Agency,Food Standards Agency,09/03/2011,Travel UK ,Chemical Risk Assessment Unit,Capita Business Travel Ltd,LI249667,194.7
Food Standards Agency,Food Standards Agency,09/03/2011,Subsistence UK,Chemical Risk Assessment Unit,Capita Business Travel Ltd,LI249667,133.17
Food Standards Agency,Food Standards Agency,09/03/2011,Subsistence UK,Chemical Risk Assessment Unit,Capita Business Travel Ltd,LI249667,26.63
Food Standards Agency,Food Standards Agency,09/03/2011,Travel UK ,Contaminants Policy & Strategy Unit,Capita Business Travel Ltd,LI249667,66.4
Food Standards Agency,Food Standards Agency,09/03/2011,International Travel,Contaminants Policy & Strategy Unit,Capita Business Travel Ltd,LI249667,"1,346.50"
Food Standards Agency,Food Standards Agency,09/03/2011,Travel UK ,Novel Food Unit,Capita Business Travel Ltd,LI249667,357.4
Food Standards Agency,Food Standards Agency,09/03/2011,International Travel,Novel Food Unit,Capita Business Travel Ltd,LI249667,392.5
Food Standards Agency,Food Standards Agency,09/03/2011,Subsistence UK,Novel Food Unit,Capita Business Travel Ltd,LI249667,446
Food Standards Agency,Food Standards Agency,09/03/2011,Subsistence UK,Novel Food Unit,Capita Business Travel Ltd,LI249667,89.2
Food Standards Agency,Food Standards Agency,09/03/2011,Travel UK ,Hygiene & Microbiology Division HoD,Capita Business Travel Ltd,LI249667,159.9
Food Standards Agency,Food Standards Agency,09/03/2011,Travel UK ,Food Production Branch,Capita Business Travel Ltd,LI249667,58.94
Food Standards Agency,Food Standards Agency,09/03/2011,Travel UK ,Food Production Branch,Capita Business Travel Ltd,LI249667,11.79
Food Standards Agency,Food Standards Agency,09/03/2011,Travel UK ,Food Production Branch,Capita Business Travel Ltd,LI249667,-10.46
Food Standards Agency,Food Standards Agency,09/03/2011,International Travel,EU Regulatory Reform Branch,Capita Business Travel Ltd,LI249667,111.48
Food Standards Agency,Food Standards Agency,09/03/2011,Travel UK ,Animal Feed Branch,Capita Business Travel Ltd,LI249667,28.4
Food Standards Agency,Food Standards Agency,09/03/2011,International Travel,Animal Feed Branch,Capita Business Travel Ltd,LI249667,327.5
Food Standards Agency,Food Standards Agency,09/03/2011,Subsistence UK,Animal Feed Branch,Capita Business Travel Ltd,LI249667,112.42
Food Standards Agency,Food Standards Agency,09/03/2011,Subsistence UK,Animal Feed Branch,Capita Business Travel Ltd,LI249667,22.48
Food Standards Agency,Food Standards Agency,09/03/2011,Subsistence UK,Animal Feed Branch,Capita Business Travel Ltd,LI249667,-20.18
Food Standards Agency,Food Standards Agency,09/03/2011,Travel UK ,Allergens,Capita Business Travel Ltd,LI249667,34.7
Food Standards Agency,Food Standards Agency,09/03/2011,International Travel,Allergens,Capita Business Travel Ltd,LI249667,143.75
Food Standards Agency,Food Standards Agency,09/03/2011,Subsistence UK,Allergens,Capita Business Travel Ltd,LI249667,140.75
Food Standards Agency,Food Standards Agency,09/03/2011,Subsistence UK,Allergens,Capita Business Travel Ltd,LI249667,28.15
Food Standards Agency,Food Standards Agency,09/03/2011,Subsistence UK,Allergens,Capita Business Travel Ltd,LI249667,-25.85
Food Standards Agency,Food Standards Agency,09/03/2011,International Travel,Additives,Capita Business Travel Ltd,LI249667,188.75
Food Standards Agency,Food Standards Agency,09/03/2011,Travel UK ,Food Policy Strategy Hod,Capita Business Travel Ltd,LI249667,"2,291.40"
Food Standards Agency,Food Standards Agency,09/03/2011,Travel UK ,Food Policy Strategy Hod,Capita Business Travel Ltd,LI249667,"1,028.18"
Food Standards Agency,Food Standards Agency,09/03/2011,Subsistence UK,Food Policy Strategy Hod,Capita Business Travel Ltd,LI249667,"4,210.87"
Food Standards Agency,Food Standards Agency,09/03/2011,Subsistence UK,Food Policy Strategy Hod,Capita Business Travel Ltd,LI249667,842.17
Food Standards Agency,Food Standards Agency,09/03/2011,Subsistence UK,Food Policy Strategy Hod,Capita Business Travel Ltd,LI249667,-73.19
Food Standards Agency,Food Standards Agency,09/03/2011,Travel UK ,Planning & Performance,Capita Business Travel Ltd,LI249667,371.3
Food Standards Agency,Food Standards Agency,09/03/2011,Subsistence UK,Planning & Performance,Capita Business Travel Ltd,LI249667,546.5
Food Standards Agency,Food Standards Agency,09/03/2011,Subsistence UK,Planning & Performance,Capita Business Travel Ltd,LI249667,109.3
Food Standards Agency,Food Standards Agency,09/03/2011,Travel UK ,Finance Director & Branch,Capita Business Travel Ltd,LI249667,"1,757.50"
Food Standards Agency,Food Standards Agency,09/03/2011,Travel UK ,Finance Director & Branch,Capita Business Travel Ltd,LI249667,354.8
Food Standards Agency,Food Standards Agency,09/03/2011,Subsistence UK,Finance Director & Branch,Capita Business Travel Ltd,LI249667,527.83
Food Standards Agency,Food Standards Agency,09/03/2011,Subsistence UK,Finance Director & Branch,Capita Business Travel Ltd,LI249667,111.5
Food Standards Agency,Food Standards Agency,09/03/2011,Subsistence UK,Finance Director & Branch,Capita Business Travel Ltd,LI249667,105.57
Food Standards Agency,Food Standards Agency,09/03/2011,Subsistence UK,Finance Director & Branch,Capita Business Travel Ltd,LI249667,68.17
Food Standards Agency,Food Standards Agency,09/03/2011,Subsistence UK,Finance Director & Branch,Capita Business Travel Ltd,LI249667,68.17
Food Standards Agency,Food Standards Agency,09/03/2011,Subsistence UK,Finance Director & Branch,Capita Business Travel Ltd,LI249667,22.3
Food Standards Agency,Food Standards Agency,09/03/2011,Subsistence UK,Finance Director & Branch,Capita Business Travel Ltd,LI249667,13.63
Food Standards Agency,Food Standards Agency,09/03/2011,Subsistence UK,Finance Director & Branch,Capita Business Travel Ltd,LI249667,13.63
Food Standards Agency,Food Standards Agency,09/03/2011,Committee fees,Finance Director & Branch,Capita Business Travel Ltd,LI249667,782.43
Food Standards Agency,Food Standards Agency,09/03/2011,Committee fees,Finance Director & Branch,Capita Business Travel Ltd,LI249667,156.49
Food Standards Agency,Food Standards Agency,09/03/2011,Committee fees,Finance Director & Branch,Capita Business Travel Ltd,LI249667,-0.02
Food Standards Agency,Food Standards Agency,09/03/2011,Travel UK ,HR,Capita Business Travel Ltd,LI249667,"3,659.60"
Food Standards Agency,Food Standards Agency,09/03/2011,Subsistence UK,HR,Capita Business Travel Ltd,LI249667,"1,688.84"
Food Standards Agency,Food Standards Agency,09/03/2011,Subsistence UK,HR,Capita Business Travel Ltd,LI249667,337.77
Food Standards Agency,Food Standards Agency,09/03/2011,Subsistence UK,HR,Capita Business Travel Ltd,LI249667,-0.01
Food Standards Agency,Food Standards Agency,09/03/2011,Conference and meeting facilities including accommodation,HR,Capita Business Travel Ltd,LI249667,53
Food Standards Agency,Food Standards Agency,09/03/2011,Conference and meeting facilities including accommodation,HR,Capita Business Travel Ltd,LI249667,10.6
Food Standards Agency,Food Standards Agency,09/03/2011,Conference and meeting facilities including accommodation,HR,Capita Business Travel Ltd,LI249667,-10
Food Standards Agency,Food Standards Agency,09/03/2011,Car hire expenses (short term),HR,Capita Business Travel Ltd,LI249667,110.4
Food Standards Agency,Food Standards Agency,09/03/2011,Car hire expenses (short term),HR,Capita Business Travel Ltd,LI249667,22.08
Food Standards Agency,Food Standards Agency,09/03/2011,Travel UK ,Procurement,Capita Business Travel Ltd,LI249667,720.3
Food Standards Agency,Food Standards Agency,09/03/2011,Travel UK ,Procurement,Capita Business Travel Ltd,LI249667,26.66
Food Standards Agency,Food Standards Agency,09/03/2011,Travel UK ,Procurement,Capita Business Travel Ltd,LI249667,5.33
Food Standards Agency,Food Standards Agency,09/03/2011,Travel UK ,Procurement,Capita Business Travel Ltd,LI249667,-739.18
Food Standards Agency,Food Standards Agency,09/03/2011,Travel UK ,Procurement,Capita Business Travel Ltd,LI249667,"-3,695.89"
Food Standards Agency,Food Standards Agency,09/03/2011,Subsistence UK,Procurement,Capita Business Travel Ltd,LI249667,796.33
Food Standards Agency,Food Standards Agency,09/03/2011,Subsistence UK,Procurement,Capita Business Travel Ltd,LI249667,159.27
Food Standards Agency,Food Standards Agency,09/03/2011,Travel UK ,IT HoD Portfolio Management,Capita Business Travel Ltd,LI249667,"1,990.80"
Food Standards Agency,Food Standards Agency,09/03/2011,Subsistence UK,IT HoD Portfolio Management,Capita Business Travel Ltd,LI249667,"1,764.00"
Food Standards Agency,Food Standards Agency,09/03/2011,Subsistence UK,IT HoD Portfolio Management,Capita Business Travel Ltd,LI249667,352.8
Food Standards Agency,Food Standards Agency,09/03/2011,Car hire expenses (short term),IT HoD Portfolio Management,Capita Business Travel Ltd,LI249667,116.76
Food Standards Agency,Food Standards Agency,09/03/2011,Car hire expenses (short term),IT HoD Portfolio Management,Capita Business Travel Ltd,LI249667,23.35
Food Standards Agency,Food Standards Agency,09/03/2011,Travel UK ,IT Strategy & Development,Capita Business Travel Ltd,LI249667,481.1
Food Standards Agency,Food Standards Agency,09/03/2011,Subsistence UK,IT Strategy & Development,Capita Business Travel Ltd,LI249667,543
Food Standards Agency,Food Standards Agency,09/03/2011,Subsistence UK,IT Strategy & Development,Capita Business Travel Ltd,LI249667,108.6
Food Standards Agency,Food Standards Agency,09/03/2011,Travel UK ,Internal Audit,Capita Business Travel Ltd,LI249667,382.59
Food Standards Agency,Food Standards Agency,09/03/2011,Travel UK ,Internal Audit,Capita Business Travel Ltd,LI249667,86.9
Food Standards Agency,Food Standards Agency,09/03/2011,Subsistence UK,Internal Audit,Capita Business Travel Ltd,LI249667,560.5
Food Standards Agency,Food Standards Agency,09/03/2011,Subsistence UK,Internal Audit,Capita Business Travel Ltd,LI249667,112.1
Food Standards Agency,Food Standards Agency,09/03/2011,Subsistence UK,"FSA Ops Cluster 25	",Capita Business Travel Ltd,LI249667,69
Food Standards Agency,Food Standards Agency,09/03/2011,Subsistence UK,"FSA Ops Cluster 25	",Capita Business Travel Ltd,LI249667,13.8
Food Standards Agency,Food Standards Agency,10/03/2011,Travel UK ,Chief Executive & Private Office,Capita Business Travel Ltd,LI254415,200.09
Food Standards Agency,Food Standards Agency,10/03/2011,Travel UK ,Chief Executive & Private Office,Capita Business Travel Ltd,LI254415,150
Food Standards Agency,Food Standards Agency,10/03/2011,Travel UK ,Chief Executive & Private Office,Capita Business Travel Ltd,LI254415,82.8
Food Standards Agency,Food Standards Agency,10/03/2011,Subsistence UK,Chief Executive & Private Office,Capita Business Travel Ltd,LI254415,121.08
Food Standards Agency,Food Standards Agency,10/03/2011,Subsistence UK,Chief Executive & Private Office,Capita Business Travel Ltd,LI254415,24.22
Food Standards Agency,Food Standards Agency,10/03/2011,Travel UK ,Chair & Deputy Chair,Capita Business Travel Ltd,LI254415,24.5
Food Standards Agency,Food Standards Agency,10/03/2011,Subsistence UK,Chair & Deputy Chair,Capita Business Travel Ltd,LI254415,121.08
Food Standards Agency,Food Standards Agency,10/03/2011,Subsistence UK,Chair & Deputy Chair,Capita Business Travel Ltd,LI254415,24.22
Food Standards Agency,Food Standards Agency,10/03/2011,Subsistence UK,FSA Board,Capita Business Travel Ltd,LI254415,"2,332.68"
Food Standards Agency,Food Standards Agency,10/03/2011,Subsistence UK,FSA Board,Capita Business Travel Ltd,LI254415,466.54
Food Standards Agency,Food Standards Agency,10/03/2011,Subsistence UK,FSA Board,Capita Business Travel Ltd,LI254415,-0.02
Food Standards Agency,Food Standards Agency,10/03/2011,Conference and meeting facilities including accommodation,FSA Board,Capita Business Travel Ltd,LI254415,"1,272.00"
Food Standards Agency,Food Standards Agency,10/03/2011,Conference and meeting facilities including accommodation,FSA Board,Capita Business Travel Ltd,LI254415,254.4
Food Standards Agency,Food Standards Agency,10/03/2011,Travel UK ,Legal  Branch A,Capita Business Travel Ltd,LI254415,120.9
Food Standards Agency,Food Standards Agency,10/03/2011,Travel UK ,Investigations,Capita Business Travel Ltd,LI254415,178.5
Food Standards Agency,Food Standards Agency,10/03/2011,Subsistence UK,Investigations,Capita Business Travel Ltd,LI254415,78.17
Food Standards Agency,Food Standards Agency,10/03/2011,Subsistence UK,Investigations,Capita Business Travel Ltd,LI254415,15.63
Food Standards Agency,Food Standards Agency,10/03/2011,Car hire expenses (short term),Investigations,Capita Business Travel Ltd,LI254415,78.22
Food Standards Agency,Food Standards Agency,10/03/2011,Car hire expenses (short term),Investigations,Capita Business Travel Ltd,LI254415,15.64
Food Standards Agency,Food Standards Agency,10/03/2011,Travel UK ,Chief Scientist,Capita Business Travel Ltd,LI254415,503.68
Food Standards Agency,Food Standards Agency,10/03/2011,Travel UK ,Chief Scientist,Capita Business Travel Ltd,LI254415,393.1
Food Standards Agency,Food Standards Agency,10/03/2011,Travel UK ,Analysis & Research Branch,Capita Business Travel Ltd,LI254415,237.3
Food Standards Agency,Food Standards Agency,10/03/2011,International Travel,Analysis & Research Branch,Capita Business Travel Ltd,LI254415,309.44
Food Standards Agency,Food Standards Agency,10/03/2011,Subsistence UK,Analysis & Research Branch,Capita Business Travel Ltd,LI254415,61.5
Food Standards Agency,Food Standards Agency,10/03/2011,Subsistence UK,Analysis & Research Branch,Capita Business Travel Ltd,LI254415,12.3
Food Standards Agency,Food Standards Agency,10/03/2011,Travel UK ,Comms Directors Office,Capita Business Travel Ltd,LI254415,855.9
Food Standards Agency,Food Standards Agency,10/03/2011,Subsistence UK,Comms Directors Office,Capita Business Travel Ltd,LI254415,692.74
Food Standards Agency,Food Standards Agency,10/03/2011,Subsistence UK,Comms Directors Office,Capita Business Travel Ltd,LI254415,138.55
Food Standards Agency,Food Standards Agency,10/03/2011,Subsistence UK,Comms Directors Office,Capita Business Travel Ltd,LI254415,0.01
Food Standards Agency,Food Standards Agency,10/03/2011,Car hire expenses (short term),Comms Directors Office,Capita Business Travel Ltd,LI254415,170.06
Food Standards Agency,Food Standards Agency,10/03/2011,Car hire expenses (short term),Comms Directors Office,Capita Business Travel Ltd,LI254415,34.01
Food Standards Agency,Food Standards Agency,10/03/2011,Travel UK ,FSA Operations Director & Support,Capita Business Travel Ltd,LI254415,39.9
Food Standards Agency,Food Standards Agency,10/03/2011,Travel UK ,FSA Operations Vet Tec,Capita Business Travel Ltd,LI254415,782.8
Food Standards Agency,Food Standards Agency,10/03/2011,Subsistence UK,FSA Operations Vet Tec,Capita Business Travel Ltd,LI254415,"1,250.83"
Food Standards Agency,Food Standards Agency,10/03/2011,Subsistence UK,FSA Operations Vet Tec,Capita Business Travel Ltd,LI254415,250.17
Food Standards Agency,Food Standards Agency,10/03/2011,Car hire expenses (short term),FSA Operations Vet Tec,Capita Business Travel Ltd,LI254415,445.18
Food Standards Agency,Food Standards Agency,10/03/2011,Car hire expenses (short term),FSA Operations Vet Tec,Capita Business Travel Ltd,LI254415,89.04
Food Standards Agency,Food Standards Agency,10/03/2011,Travel UK ,LAALD HoD & Support,Capita Business Travel Ltd,LI254415,"1,325.80"
Food Standards Agency,Food Standards Agency,10/03/2011,International Travel,LAALD HoD & Support,Capita Business Travel Ltd,LI254415,188.16
Food Standards Agency,Food Standards Agency,10/03/2011,Subsistence UK,LAALD HoD & Support,Capita Business Travel Ltd,LI254415,764.91
Food Standards Agency,Food Standards Agency,10/03/2011,Subsistence UK,LAALD HoD & Support,Capita Business Travel Ltd,LI254415,152.98
Food Standards Agency,Food Standards Agency,10/03/2011,Subsistence UK,LAALD HoD & Support,Capita Business Travel Ltd,LI254415,0.01
Food Standards Agency,Food Standards Agency,10/03/2011,Travel UK ,Delivery,Capita Business Travel Ltd,LI254415,383.6
Food Standards Agency,Food Standards Agency,10/03/2011,International Travel,Delivery,Capita Business Travel Ltd,LI254415,123.75
Food Standards Agency,Food Standards Agency,10/03/2011,Subsistence UK,Delivery,Capita Business Travel Ltd,LI254415,507.42
Food Standards Agency,Food Standards Agency,10/03/2011,Subsistence UK,Delivery,Capita Business Travel Ltd,LI254415,101.48
Food Standards Agency,Food Standards Agency,10/03/2011,International Travel,Official Controls & Enforcement Strategy,Capita Business Travel Ltd,LI254415,343.5
Food Standards Agency,Food Standards Agency,10/03/2011,Travel UK ,FSA Ops Delivery Planning Unit,Capita Business Travel Ltd,LI254415,"3,008.80"
Food Standards Agency,Food Standards Agency,10/03/2011,Travel UK ,FSA Ops Delivery Planning Unit,Capita Business Travel Ltd,LI254415,274.38
Food Standards Agency,Food Standards Agency,10/03/2011,Subsistence UK,FSA Ops Delivery Planning Unit,Capita Business Travel Ltd,LI254415,"3,830.45"
Food Standards Agency,Food Standards Agency,10/03/2011,Subsistence UK,FSA Ops Delivery Planning Unit,Capita Business Travel Ltd,LI254415,766.09
Food Standards Agency,Food Standards Agency,10/03/2011,Subsistence UK,FSA Ops Delivery Planning Unit,Capita Business Travel Ltd,LI254415,0.01
Food Standards Agency,Food Standards Agency,10/03/2011,Conference and meeting facilities including accommodation,FSA Ops Delivery Planning Unit,Capita Business Travel Ltd,LI254415,75.62
Food Standards Agency,Food Standards Agency,10/03/2011,Conference and meeting facilities including accommodation,FSA Ops Delivery Planning Unit,Capita Business Travel Ltd,LI254415,15.12
Food Standards Agency,Food Standards Agency,10/03/2011,Conference and meeting facilities including accommodation,FSA Ops Delivery Planning Unit,Capita Business Travel Ltd,LI254415,-1.15
Food Standards Agency,Food Standards Agency,10/03/2011,Travel UK ,Chemical Risk Assessment Unit,Capita Business Travel Ltd,LI254415,108
Food Standards Agency,Food Standards Agency,10/03/2011,Travel UK ,Contaminants Policy & Strategy Unit,Capita Business Travel Ltd,LI254415,140.2
Food Standards Agency,Food Standards Agency,10/03/2011,International Travel,Contaminants Policy & Strategy Unit,Capita Business Travel Ltd,LI254415,"1,187.25"
Food Standards Agency,Food Standards Agency,10/03/2011,Subsistence UK,Novel Food Unit,Capita Business Travel Ltd,LI254415,140.5
Food Standards Agency,Food Standards Agency,10/03/2011,Subsistence UK,Novel Food Unit,Capita Business Travel Ltd,LI254415,28.1
Food Standards Agency,Food Standards Agency,10/03/2011,Travel UK ,Hygiene & Microbiology Division HoD,Capita Business Travel Ltd,LI254415,96
Food Standards Agency,Food Standards Agency,10/03/2011,Subsistence UK,Hygiene & Microbiology Division HoD,Capita Business Travel Ltd,LI254415,74
Food Standards Agency,Food Standards Agency,10/03/2011,Subsistence UK,Hygiene & Microbiology Division HoD,Capita Business Travel Ltd,LI254415,14.8
Food Standards Agency,Food Standards Agency,10/03/2011,Subsistence UK,Food Production Branch,Capita Business Travel Ltd,LI254415,172.17
Food Standards Agency,Food Standards Agency,10/03/2011,Subsistence UK,Food Production Branch,Capita Business Travel Ltd,LI254415,34.43
Food Standards Agency,Food Standards Agency,10/03/2011,Car hire expenses (short term),Food Production Branch,Capita Business Travel Ltd,LI254415,93.4
Food Standards Agency,Food Standards Agency,10/03/2011,Car hire expenses (short term),Food Production Branch,Capita Business Travel Ltd,LI254415,18.68
Food Standards Agency,Food Standards Agency,10/03/2011,Travel UK ,EU Regulatory Reform Branch,Capita Business Travel Ltd,LI254415,149.6
Food Standards Agency,Food Standards Agency,10/03/2011,Travel UK ,EU Regulatory Reform Branch,Capita Business Travel Ltd,LI254415,75.5
Food Standards Agency,Food Standards Agency,10/03/2011,International Travel,EU Regulatory Reform Branch,Capita Business Travel Ltd,LI254415,263.75
Food Standards Agency,Food Standards Agency,10/03/2011,International Travel,Food Hygiene Policy Branch,Capita Business Travel Ltd,LI254415,263.75
Food Standards Agency,Food Standards Agency,10/03/2011,International Travel,Additives,Capita Business Travel Ltd,LI254415,347.5
Food Standards Agency,Food Standards Agency,10/03/2011,Travel UK ,Food Policy Strategy Hod,Capita Business Travel Ltd,LI254415,"1,889.50"
Food Standards Agency,Food Standards Agency,10/03/2011,Travel UK ,Food Policy Strategy Hod,Capita Business Travel Ltd,LI254415,219.6
Food Standards Agency,Food Standards Agency,10/03/2011,International Travel,Food Policy Strategy Hod,Capita Business Travel Ltd,LI254415,434.8
Food Standards Agency,Food Standards Agency,10/03/2011,Subsistence UK,Food Policy Strategy Hod,Capita Business Travel Ltd,LI254415,"2,093.16"
Food Standards Agency,Food Standards Agency,10/03/2011,Subsistence UK,Food Policy Strategy Hod,Capita Business Travel Ltd,LI254415,418.63
Food Standards Agency,Food Standards Agency,10/03/2011,Subsistence UK,Food Policy Strategy Hod,Capita Business Travel Ltd,LI254415,0.01
Food Standards Agency,Food Standards Agency,10/03/2011,Travel UK ,Planning & Performance,Capita Business Travel Ltd,LI254415,611.8
Food Standards Agency,Food Standards Agency,10/03/2011,Subsistence UK,Planning & Performance,Capita Business Travel Ltd,LI254415,74
Food Standards Agency,Food Standards Agency,10/03/2011,Subsistence UK,Planning & Performance,Capita Business Travel Ltd,LI254415,14.8
Food Standards Agency,Food Standards Agency,10/03/2011,Travel UK ,Finance Director & Branch,Capita Business Travel Ltd,LI254415,403.9
Food Standards Agency,Food Standards Agency,10/03/2011,Travel UK ,Finance Director & Branch,Capita Business Travel Ltd,LI254415,353.4
Food Standards Agency,Food Standards Agency,10/03/2011,Subsistence UK,Finance Director & Branch,Capita Business Travel Ltd,LI254415,121.5
Food Standards Agency,Food Standards Agency,10/03/2011,Subsistence UK,Finance Director & Branch,Capita Business Travel Ltd,LI254415,111.5
Food Standards Agency,Food Standards Agency,10/03/2011,Subsistence UK,Finance Director & Branch,Capita Business Travel Ltd,LI254415,24.3
Food Standards Agency,Food Standards Agency,10/03/2011,Subsistence UK,Finance Director & Branch,Capita Business Travel Ltd,LI254415,22.3
Food Standards Agency,Food Standards Agency,10/03/2011,Car hire expenses (short term),Finance Director & Branch,Capita Business Travel Ltd,LI254415,69.35
Food Standards Agency,Food Standards Agency,10/03/2011,Car hire expenses (short term),Finance Director & Branch,Capita Business Travel Ltd,LI254415,13.87
Food Standards Agency,Food Standards Agency,10/03/2011,Travel UK ,HR,Capita Business Travel Ltd,LI254415,"3,110.50"
Food Standards Agency,Food Standards Agency,10/03/2011,Subsistence UK,HR,Capita Business Travel Ltd,LI254415,978.33
Food Standards Agency,Food Standards Agency,10/03/2011,Subsistence UK,HR,Capita Business Travel Ltd,LI254415,195.67
Food Standards Agency,Food Standards Agency,10/03/2011,Car hire expenses (short term),HR,Capita Business Travel Ltd,LI254415,316.75
Food Standards Agency,Food Standards Agency,10/03/2011,Car hire expenses (short term),HR,Capita Business Travel Ltd,LI254415,63.35
Food Standards Agency,Food Standards Agency,10/03/2011,Travel UK ,Procurement,Capita Business Travel Ltd,LI254415,502.5
Food Standards Agency,Food Standards Agency,10/03/2011,Subsistence UK,Procurement,Capita Business Travel Ltd,LI254415,563.31
Food Standards Agency,Food Standards Agency,10/03/2011,Subsistence UK,Procurement,Capita Business Travel Ltd,LI254415,112.66
Food Standards Agency,Food Standards Agency,10/03/2011,Subsistence UK,Procurement,Capita Business Travel Ltd,LI254415,0.01
Food Standards Agency,Food Standards Agency,10/03/2011,Travel UK ,IT HoD Portfolio Management,Capita Business Travel Ltd,LI254415,"1,504.85"
Food Standards Agency,Food Standards Agency,10/03/2011,Subsistence UK,IT HoD Portfolio Management,Capita Business Travel Ltd,LI254415,411.83
Food Standards Agency,Food Standards Agency,10/03/2011,Subsistence UK,IT HoD Portfolio Management,Capita Business Travel Ltd,LI254415,82.37
Food Standards Agency,Food Standards Agency,10/03/2011,Travel UK ,IT Strategy & Development,Capita Business Travel Ltd,LI254415,245.8
Food Standards Agency,Food Standards Agency,10/03/2011,Subsistence UK,IT Strategy & Development,Capita Business Travel Ltd,LI254415,139.5
Food Standards Agency,Food Standards Agency,10/03/2011,Subsistence UK,IT Strategy & Development,Capita Business Travel Ltd,LI254415,27.9
Food Standards Agency,Food Standards Agency,10/03/2011,Travel UK ,Internal Audit,Capita Business Travel Ltd,LI254415,197.7
Food Standards Agency,Food Standards Agency,10/03/2011,Subsistence UK,Internal Audit,Capita Business Travel Ltd,LI254415,698
Food Standards Agency,Food Standards Agency,10/03/2011,Subsistence UK,Internal Audit,Capita Business Travel Ltd,LI254415,139.6
Food Standards Agency,Food Standards Agency,10/03/2011,Subsistence UK,"FSA Ops Cluster 30	",Capita Business Travel Ltd,LI254415,74
Food Standards Agency,Food Standards Agency,10/03/2011,Subsistence UK,"FSA Ops Cluster 30	",Capita Business Travel Ltd,LI254415,14.8
Food Standards Agency,Food Standards Agency,14/03/2011,Project Programme expenditure,Delivery,Eurofins Laboratories Ltd,IN11LF000102,"30,450.00"
Food Standards Agency,Food Standards Agency,15/03/2011,Programme Evidence & Research Expenditure,Analysis & Research Branch,LGC Ltd,50063512,"26,200.00"
Food Standards Agency,Food Standards Agency,15/03/2011,Programme Evidence & Research Expenditure,Analysis & Research Branch,LGC Ltd,50063512,"8,984.00"
Food Standards Agency,Food Standards Agency,15/03/2011,Project Programme expenditure,Contaminants Policy & Strategy Unit,Veterinary Laboratories Agency,4000001627,"74,956.58"
Food Standards Agency,Food Standards Agency,16/03/2011,Programme Evidence & Research Expenditure,Chemical Risk Assessment Unit,Food & Environment Research Agency,R0000616,"55,308.00"
Food Standards Agency,Food Standards Agency,16/03/2011,Programme Evidence & Research Expenditure,Contaminants Policy & Strategy Unit,Food & Environment Research Agency,F0013914,"30,824.00"
Food Standards Agency,Food Standards Agency,16/03/2011,Fixed Assets Additions,IT HoD Portfolio Management,Equanet,10855430,"63,174.32"
Food Standards Agency,Food Standards Agency,16/03/2011,Fixed Assets Additions,IT HoD Portfolio Management,Equanet,10855430,"12,634.86"
Food Standards Agency,Food Standards Agency,16/03/2011,Fixed Assets Additions,IT HoD Portfolio Management,Equanet,10855430,"2,225.48"
Food Standards Agency,Food Standards Agency,16/03/2011,Fixed Assets Additions,IT HoD Portfolio Management,Equanet,10855430,445.1
Food Standards Agency,Food Standards Agency,17/03/2011,Subscriptions to professional bodies,FSA Operations Director & Support,The Association Of Meat Inspectors,17-Jan-11,"25,000.00"
Food Standards Agency,Food Standards Agency,17/03/2011,Programme Evidence & Research Expenditure,Chemical Risk Assessment Unit,University Of Hull,SOIN39551,"33,000.00"
Food Standards Agency,Food Standards Agency,17/03/2011,Programme Evidence & Research Expenditure,Food Production Branch,University Of Nottingham,6975815,"29,224.88"
Food Standards Agency,Food Standards Agency,17/03/2011,Programme Evidence & Research Expenditure,Allergens,Kings College London,RGI10111762,"38,478.41"
Food Standards Agency,Food Standards Agency,22/03/2011,Project Programme expenditure,Analysis & Research Branch,Food & Environment Research Agency,F0014033,"35,831.25"
Food Standards Agency,Food Standards Agency,22/03/2011,Project Programme expenditure,Analysis & Research Branch,Veterinary Laboratories Agency,4000001649,"25,961.40"
Food Standards Agency,Food Standards Agency,22/03/2011,Programme Evidence & Research Expenditure,Official Controls & Enforcement Strategy,Coi,733595,"31,500.00"
Food Standards Agency,Food Standards Agency,22/03/2011,Programme Evidence & Research Expenditure,Chemical Risk Assessment Unit,Imperial College,10083384,"30,000.00"
Food Standards Agency,Food Standards Agency,22/03/2011,Programme Evidence & Research Expenditure,Chemical Risk Assessment Unit,Imperial College,10083385,"30,000.00"
Food Standards Agency,Food Standards Agency,22/03/2011,Programme Evidence & Research Expenditure,Food Production Branch,Food & Environment Research Agency,F0014063,"29,234.53"
Food Standards Agency,Food Standards Agency,22/03/2011,Programme Evidence & Research Expenditure,Food Production Branch,Moredun Research Institute,7281,"66,342.00"
Food Standards Agency,Food Standards Agency,22/03/2011,Programme Evidence & Research Expenditure,Food Production Branch,University Of Bristol,RES31368,"38,629.20"
Food Standards Agency,Food Standards Agency,22/03/2011,Programme Evidence & Research Expenditure,Food Production Branch,University Of Edinburgh,Z0020180,"86,046.00"
Food Standards Agency,Food Standards Agency,23/03/2011,Programme Evidence & Research Expenditure,Contaminants Policy & Strategy Unit,Food & Environment Research Agency,F0014147,"30,025.74"
Food Standards Agency,Food Standards Agency,23/03/2011,Programme Evidence & Research Expenditure,Contaminants Policy & Strategy Unit,Food & Environment Research Agency,F0014147,"30,025.74"
Food Standards Agency,Food Standards Agency,23/03/2011,Rent & management charges - AVH,Security & Estates,Dekay Management Ltd,1167,"1,513,314.85"
Food Standards Agency,Food Standards Agency,23/03/2011,Rent & management charges - AVH,Security & Estates,Dekay Management Ltd,1167,"302,662.97"
Food Standards Agency,Food Standards Agency,28/03/2011,Project Programme expenditure,Analysis & Research Branch,Food & Environment Research Agency,F0014034,"34,972.88"
Food Standards Agency,Food Standards Agency,28/03/2011,Travel UK ,Finance Director & Branch,Capita Business Travel Ltd,LI260625,"34,419.27"
Food Standards Agency,Food Standards Agency,28/03/2011,Travel UK ,Finance Director & Branch,Capita Business Travel Ltd,LI260625,"14,893.97"
Food Standards Agency,Food Standards Agency,28/03/2011,Travel UK ,Finance Director & Branch,Capita Business Travel Ltd,LI260625,"8,321.98"
Food Standards Agency,Food Standards Agency,28/03/2011,Travel UK ,Finance Director & Branch,Capita Business Travel Ltd,LI260625,"6,106.98"
Food Standards Agency,Food Standards Agency,28/03/2011,Travel UK ,Finance Director & Branch,Capita Business Travel Ltd,LI260625,"2,978.79"
Food Standards Agency,Food Standards Agency,28/03/2011,Travel UK ,Finance Director & Branch,Capita Business Travel Ltd,LI260625,"1,664.40"
Food Standards Agency,Food Standards Agency,28/03/2011,Travel UK ,Finance Director & Branch,Capita Business Travel Ltd,LI260625,"1,221.40"
Food Standards Agency,Food Standards Agency,28/03/2011,Travel UK ,Finance Director & Branch,Capita Business Travel Ltd,LI260625,220.25
Food Standards Agency,Food Standards Agency,28/03/2011,Travel UK ,Finance Director & Branch,Capita Business Travel Ltd,LI260625,-207.63
Food Standards Agency,Food Standards Agency,28/03/2011,Mobile phone charges,IT Service Delivery,Vodafone Ltd,57210268,"24,267.91"
Food Standards Agency,Food Standards Agency,28/03/2011,Mobile phone charges,IT Service Delivery,Vodafone Ltd,57210268,"4,246.88"
Food Standards Agency,Food Standards Agency,28/03/2011,Mobile phone charges,IT Service Delivery,Vodafone Ltd,57210268,220.93
Food Standards Agency,Food Standards Agency,28/03/2011,Mobile phone charges,IT Service Delivery,Vodafone Ltd,57210268,2.25
Food Standards Agency,Food Standards Agency,29/03/2011,Project Programme expenditure,Press Office,FARM,4993,"20,000.00"
Food Standards Agency,Food Standards Agency,29/03/2011,Project Programme expenditure,Press Office,FARM,4993,"4,000.00"
Food Standards Agency,Food Standards Agency,29/03/2011,Project Programme expenditure,Enforcement Policy,FARM,4993,"5,000.00"
Food Standards Agency,Food Standards Agency,29/03/2011,Project Programme expenditure,Enforcement Policy,FARM,4993,"1,000.00"
Food Standards Agency,Food Standards Agency,29/03/2011,Programme Evidence & Research Expenditure,Chemical Risk Assessment Unit,Natural Environ Research Council,7060000549,"84,125.80"
Food Standards Agency,Food Standards Agency,29/03/2011,Programme Evidence & Research Expenditure,Nutrition Research & Expert Advice,University Of Southampton,44080464,"60,098.00"
Food Standards Agency,Food Standards Agency,29/03/2011,IT equipment maintenance,IT Service Delivery,Trustmarque Solutions Ltd,2146849,"11,310.00"
Food Standards Agency,Food Standards Agency,29/03/2011,IT equipment maintenance,IT Service Delivery,Trustmarque Solutions Ltd,2146849,"2,262.00"
Food Standards Agency,Food Standards Agency,29/03/2011,Fixed Assets Additions,IT Service Delivery,Trustmarque Solutions Ltd,2146849,"48,800.00"
Food Standards Agency,Food Standards Agency,29/03/2011,Fixed Assets Additions,IT Service Delivery,Trustmarque Solutions Ltd,2146849,"9,760.00"
Food Standards Agency,Food Standards Agency,30/03/2011,Conference and meeting facilities including accommodation,FSA Board,Glasgows,13934,"25,512.40"
Food Standards Agency,Food Standards Agency,30/03/2011,Conference and meeting facilities including accommodation,FSA Board,Glasgows,13934,"5,102.48"
Food Standards Agency,Food Standards Agency,31/03/2011,Project Programme expenditure,Web & Editorial,Savvis Uk Ltd,B1626612,895.3
Food Standards Agency,Food Standards Agency,31/03/2011,Project Programme expenditure,Web & Editorial,Savvis Uk Ltd,B1626612,"-7,162.41"
Food Standards Agency,Food Standards Agency,31/03/2011,Project Programme expenditure,Web & Editorial,Savvis Uk Ltd,B1626612,"-35,812.05"
"Date Run: 05-APR-11 01.41.28 PM --- GL Start Date : '01-MAR-2011' , GL End Date : '31-MAR-2011' , Company Code : '17, 21'",,,,,,,
